fUSD/lending_fUSD_20260214
["ID","MTS","AMOUNT","RATE_DAILY","PERIOD"]
[405376584,1771093993024,-792.61,0.00043835,120]
[405376585,1771093993034,-3809.76,0.00043835,120]
[405376586,1771093993044,-1872.91,0.00043835,120]
[405376587,1771093993053,-751.97,0.00043835,120]
[405376588,1771093993063,-4301.09,0.00043835,120]
[405376589,1771093993073,-500.0,0.00043835,120]
[405376590,1771093993083,-49453.89,0.00043835,120]
[405376591,1771093993092,-514.79,0.00043835,120]
[405376592,1771093993102,-522.72,0.00043835,120]
[405376593,1771093993112,-3592.54,0.00043835,120]
[405376594,1771093993121,-6816.69,0.00043835,120]
[405376595,1771093993131,-6877.26,0.00043835,120]
[405376596,1771093993141,-500.0,0.00043835,30]
[405376597,1771093993151,-3548.79,0.00043835,120]
[405376598,1771093993161,-643.83,0.00043835,120]
[405376599,1771093993171,-5429.53,0.00043835,120]
[405376600,1771093993180,-4648.43,0.00043835,120]
[405376601,1771093993191,-685.71,0.00043835,120]
[405376602,1771093993200,-500.0,0.00043835,120]
[405376603,1771093993210,-217.73458895,0.00043835,120]
[405376604,1771093993220,-1668.59,0.00043835,120]
[405376605,1771093993229,-622.0,0.00043835,120]
[405376606,1771093993239,-4113.81,0.00043835,120]
[405376607,1771093993249,-735.58,0.00043835,120]
[405376608,1771093993259,-1564.16,0.00043835,120]
[405376609,1771093993269,-678.21,0.00043835,120]
[405376610,1771093993278,-2515.75,0.00043835,120]
[405376611,1771093993287,-4400.86,0.00043835,120]
[405376612,1771093993297,-579.75,0.00043835,120]
[405376613,1771093993307,-798.86,0.00043835,120]
[405376614,1771093993316,-1141.19,0.00043835,120]
[405376615,1771093993326,-995.04,0.00043835,120]
[405376616,1771093993337,-9716.73,0.00043835,120]
[405376617,1771093993346,-652.51819824,0.00043836,2]
[405376618,1771093993356,-859.218559,0.00043836,120]
[405376619,1771093993366,-859.218559,0.00043836,120]
[405376620,1771093993376,-859.218559,0.00043836,120]
[405376621,1771093993385,-859.218559,0.00043836,120]
[405376622,1771093993394,-859.218559,0.00043836,120]
[405376623,1771093993403,-859.218559,0.00043836,120]
[405376624,1771093993413,-859.218559,0.00043836,120]
[405376625,1771093993425,-859.218559,0.00043836,120]
[405376626,1771093993434,-859.218559,0.00043836,120]
[405376627,1771093993445,-859.218559,0.00043836,120]
[405376628,1771093993454,-859.218559,0.00043836,120]
[405376629,1771093993464,-859.218559,0.00043836,120]
[405376630,1771093993473,-859.218559,0.00043836,120]
[405376631,1771093993483,-859.218559,0.00043836,120]
[405376632,1771093993493,-859.218559,0.00043836,120]
[405376633,1771093993504,-859.218559,0.00043836,120]
[405376634,1771093993514,-859.218559,0.00043836,120]
[405376635,1771093993525,-859.218559,0.00043836,120]
[405376636,1771093993534,-859.218559,0.00043836,120]
[405376637,1771093993545,-859.218566,0.00043836,120]
[405376638,1771093993558,-163.89800135,0.00043836,5]
[405376639,1771093993567,-20000.0,0.00043836,120]
[405376640,1771093993576,-14380.94958841,0.00043838,2]
[405376641,1771093993588,-160.80535225,0.0004384,120]
[405376642,1771093993597,-160.80535225,0.0004384,120]
[405376643,1771093993607,-160.80535225,0.0004384,120]
[405376644,1771093993616,-160.8,0.0004384,120]
[405376645,1771093993625,-150.08499543,0.0004384,120]
[405376646,1771093993634,-150.08499543,0.0004384,120]
[405376647,1771093993645,-150.08499543,0.0004384,120]
[405376648,1771093993654,-150.08499543,0.0004384,120]
[405376649,1771093993664,-150.08499543,0.0004384,120]
[405376650,1771093993673,-150.08499543,0.0004384,120]
[405376651,1771093993682,-150.08499543,0.0004384,120]
[405376652,1771093993692,-150.08499543,0.0004384,120]
[405376653,1771093993702,-150.08499543,0.0004384,120]
[405376654,1771093993711,-150.08,0.0004384,120]
[405376655,1771093993720,-169.70462656,0.0004384,120]
[405376656,1771093993730,-169.7,0.0004384,120]
[405376657,1771093993740,-161.0778751,0.0004384,120]
[405376658,1771093993749,-161.07,0.0004384,120]
[405376659,1771093993758,-152.13,0.00043846,120]
[405376660,1771093993768,-287.07008091,0.0004385,120]
[405376661,1771093993778,-14913.04472318,0.00043893,2]
[405376662,1771093993787,-152.12,0.00043898,120]
[405376663,1771093993796,-150.0,0.00043899,120]
[405376664,1771093993806,-200.16,0.000439,30]
[405376665,1771093993815,-5419.22579159,0.000439,120]
[405376666,1771093993824,-624.0,0.000439,120]
[405376667,1771093993834,-50000.0,0.000439,120]
[405376668,1771093993843,-1083.3850617,0.000439,120]
[405376669,1771093993853,-2203.05,0.000439,120]
[405376670,1771093993862,-150.0,0.00043908,120]
[405376671,1771093993871,-10000.0,0.00043917,30]
[405376672,1771093993881,-10359.41639451,0.00043917,30]
[405376673,1771093993891,-661.64,0.00043945,120]
[405376674,1771093993996,-152.13,0.00043946,120]
[405376675,1771093994007,-15356.95568367,0.00043948,2]
[405376676,1771093994017,-389.493614,0.0004395,30]
[405376677,1771093994026,-150.0,0.00043951,120]
[405376678,1771093994036,-19729.0,0.00043961,120]
[405376679,1771093994045,-20042.77363308,0.00043968,30]
[405376680,1771093994055,-163679.5497158,0.00043987,120]
[405376681,1771093994065,-201.0,0.0004399,90]
[405376682,1771093994075,-341.36785526,0.00043995,30]
[405376683,1771093994084,-223.65605593,0.00043998,16]
[405376684,1771093994092,-152.12,0.00043998,120]
[405376685,1771093994102,-7918.83724316,0.00044,120]
[405376686,1771093994111,-20000.0,0.00044,120]
[405376687,1771093994121,-30116.34,0.00044,120]
[405376688,1771093994130,-200062.73715813,0.00044,120]
[405376689,1771093994139,-1000.0,0.00044,120]
[405376690,1771093994148,-262.4434985,0.00044,30]
[405376691,1771093994157,-11528.82907345,0.00044,10]
[405376692,1771093994166,-614.03870163,0.00044,30]
[405376693,1771093994175,-239.50195992,0.00044,120]
[405376694,1771093994184,-42375.5,0.00044,120]
[405376695,1771093994193,-310.0602,0.00044,120]
[405376696,1771093994202,-12502.845,0.00044,90]
[405376697,1771093994211,-12502.845,0.00044,90]
[405376698,1771093994221,-12502.845,0.00044,90]
[405376699,1771093994233,-12502.84,0.00044,90]
[405376700,1771093994242,-71836.7032317,0.00044,120]
[405376701,1771093994253,-1572.22,0.00044,120]
[405376702,1771093994264,-1572.22,0.00044,90]
[405376703,1771093994276,-1572.22,0.00044,120]
[405376704,1771093994287,-1572.22,0.00044,90]
[405376705,1771093994296,-1780.286,0.00044,90]
[405376706,1771093994306,-1780.286,0.00044,90]
[405376707,1771093994315,-1780.28,0.00044,120]
[405376708,1771093994324,-6790.5670324,0.00044,30]
[405376709,1771093994333,-152.0,0.00044,120]
[405376710,1771093994343,-832.20209227,0.00044,120]
[405376711,1771093994352,-500.0,0.00044,120]
[405376712,1771093994361,-517.0,0.00044,120]
[405376713,1771093994370,-10034.74605703,0.00044,2]
[405376714,1771093994380,-560.116009,0.00044,57]
[405376715,1771093994389,-494.52792589,0.00044,120]
[405376716,1771093994398,-268.647003,0.00044,45]
[405376717,1771093994408,-15066.94583714,0.00044,120]
[405376718,1771093994417,-499.0,0.00044,120]
[405376719,1771093994431,-500.0,0.00044,120]
[405376720,1771093994440,-500.0,0.00044012,60]
[405376721,1771093994449,-215.09361442,0.00044028,120]
[405376722,1771093994458,-214.16180941,0.00044028,120]
[405376723,1771093994469,-150.0,0.0004403,120]
[405376724,1771093994479,-152.13,0.00044046,120]
[405376725,1771093994488,-661.64,0.00044082,120]
[405376726,1771093994499,-150.0,0.00044089,120]
[405376727,1771093994508,-150.0,0.00044095,120]
[405376728,1771093994518,-471.27,0.00044098,30]
[405376729,1771093994527,-152.12,0.00044098,120]
[405376730,1771093994537,-197.73,0.00044099,30]
[405376731,1771093994546,-180.68,0.00044099,30]
[405376732,1771093994555,-234.66,0.00044099,30]
[405376733,1771093994565,-471.27,0.00044099,30]
[405376734,1771093994575,-2236.17,0.00044109,120]
[405376735,1771093994584,-1499.27,0.00044109,120]
[405376736,1771093994593,-530.55,0.00044109,120]
[405376737,1771093994603,-679.39,0.00044109,120]
[405376738,1771093994612,-425.12,0.00044109,2]
[405376739,1771093994622,-551.29543418,0.00044109,120]
[405376740,1771093994631,-500.0,0.00044109,120]
[405376741,1771093994640,-3818.35,0.00044109,120]
[405376742,1771093994650,-500.0,0.00044109,120]
[405376743,1771093994660,-1478.52,0.00044109,120]
[405376744,1771093994669,-500.0,0.00044109,120]
[405376745,1771093994679,-556.97,0.00044109,120]
[405376746,1771093994689,-500.0,0.00044109,120]
[405376747,1771093994698,-500.0,0.00044109,120]
[405376748,1771093994707,-3459.63,0.00044109,120]
[405376749,1771093994717,-1007.77,0.00044109,120]
[405376750,1771093994726,-1366.15,0.00044109,2]
[405376751,1771093994736,-1397.34,0.00044109,120]
[405376752,1771093994745,-581.99,0.00044109,120]
[405376753,1771093994754,-395.38911911,0.00044109,120]
[405376754,1771093994764,-3781.3,0.00044109,120]
[405376755,1771093994773,-500.0,0.00044109,120]
[405376756,1771093994783,-665.99,0.00044109,120]
[405376757,1771093994792,-515.30225906,0.00044109,120]
[405376758,1771093994802,-402.45650128,0.00044109,120]
[405376759,1771093994811,-512.2,0.00044109,120]
[405376760,1771093994821,-516.7,0.00044109,120]
[405376761,1771093994831,-262.15434475,0.00044109,120]
[405376762,1771093994840,-3417.97,0.00044109,120]
[405376763,1771093994849,-5149.98,0.00044109,120]
[405376764,1771093994859,-3403.19,0.00044109,120]
[405376765,1771093994869,-219.4992784,0.00044109,120]
[405376766,1771093994879,-538.62,0.00044109,120]
[405376767,1771093994888,-305.18245885,0.00044109,120]
[405376768,1771093994898,-556.88,0.00044109,120]
[405376769,1771093994907,-561.54,0.00044109,60]
[405376770,1771093994917,-1233.52,0.00044109,120]
[405376771,1771093994926,-5585.82,0.00044109,120]
[405376772,1771093994936,-540.9,0.00044109,2]
[405376773,1771093994945,-524.45,0.00044109,120]
[405376774,1771093994955,-711.16,0.00044109,120]
[405376775,1771093994965,-885.44,0.00044109,120]
[405376776,1771093994974,-2840.08,0.00044109,90]
[405376777,1771093994985,-500.06,0.00044109,120]
[405376778,1771093994995,-500.0,0.00044109,120]
[405376779,1771093995006,-3032.83,0.00044109,120]
[405376780,1771093995016,-3433.22,0.00044109,120]
[405376781,1771093995026,-631.89,0.00044109,120]
[405376782,1771093995037,-3775.51,0.00044109,120]
[405376783,1771093995046,-1984.08,0.00044109,120]
[405376784,1771093995056,-3890.45,0.00044109,120]
[405376785,1771093995067,-4088.99,0.00044109,120]
[405376786,1771093995077,-207.75759239,0.00044109,120]
[405376787,1771093995087,-870.9,0.00044109,120]
[405376788,1771093995096,-710.66,0.00044109,120]
[405376789,1771093995106,-6355.63,0.00044109,120]
[405376790,1771093995115,-3872.17,0.00044109,120]
[405376791,1771093995125,-577.68,0.00044109,120]
[405376792,1771093995134,-5100.22,0.00044109,120]
[405376793,1771093995143,-10810.91,0.00044109,120]
[405376794,1771093995153,-4011.27,0.00044109,120]
[405376795,1771093995163,-4569.78,0.00044109,120]
[405376796,1771093995172,-3982.43,0.00044109,120]
[405376797,1771093995181,-510.59879588,0.00044109,120]
[405376798,1771093995191,-945.81,0.00044109,120]
[405376799,1771093995200,-5326.62,0.00044109,120]
[405376800,1771093995209,-1374.78,0.00044109,120]
[405376801,1771093995218,-4059.63,0.00044109,120]
[405376802,1771093995227,-3578.35,0.00044109,120]
[405376803,1771093995237,-5981.56,0.00044109,120]
[405376804,1771093995246,-5562.93,0.00044109,120]
[405376805,1771093995255,-3292.7,0.00044109,120]
[405376806,1771093995265,-3804.91,0.00044109,120]
[405376807,1771093995274,-10011.46,0.00044109,120]
[405376808,1771093995283,-5698.9,0.00044109,120]
[405376809,1771093995293,-618.1,0.00044109,120]
[405376810,1771093995302,-500.0,0.00044109,120]
[405376811,1771093995312,-3635.6,0.00044109,120]
[405376812,1771093995321,-4860.79,0.00044109,120]
[405376813,1771093995330,-585.84,0.00044109,120]
[405376814,1771093995339,-5822.07,0.00044109,120]
[405376815,1771093995348,-8145.86,0.00044109,120]
[405376816,1771093995358,-3702.56,0.00044109,120]
[405376817,1771093995367,-1020.67,0.00044109,120]
[405376818,1771093995376,-579.77,0.00044109,120]
[405376819,1771093995385,-2809.91,0.00044109,15]
[405376820,1771093995395,-692.65,0.00044109,120]
[405376821,1771093995405,-835.77,0.00044109,120]
[405376822,1771093995414,-4321.01,0.00044109,120]
[405376823,1771093995425,-400.0,0.00044109,120]
[405376824,1771093995435,-500.0,0.00044109,120]
[405376825,1771093995444,-11996.33,0.00044109,120]
[405376826,1771093995454,-5541.84,0.00044109,120]
[405376827,1771093995465,-4068.1,0.00044109,120]
[405376828,1771093995475,-3498.65,0.00044109,120]
[405376829,1771093995484,-4772.89,0.00044109,120]
[405376830,1771093995493,-3599.74,0.00044109,120]
[405376831,1771093995503,-3590.36,0.00044109,120]
[405376832,1771093995513,-555.53,0.00044109,120]
[405376833,1771093995522,-2260.49,0.00044109,120]
[405376834,1771093995531,-602.84,0.00044109,30]
[405376835,1771093995540,-3986.91,0.00044109,120]
[405376836,1771093995549,-4500.2,0.00044109,120]
[405376837,1771093995559,-17167.11,0.00044109,15]
[405376838,1771093995568,-6987.05,0.00044109,120]
[405376839,1771093995578,-792.61,0.00044109,120]
[405376840,1771093995587,-3809.76,0.00044109,120]
[405376841,1771093995596,-1872.91,0.00044109,120]
[405376842,1771093995605,-751.97,0.00044109,120]
[405376843,1771093995614,-4301.09,0.00044109,120]
[405376844,1771093995623,-500.0,0.00044109,120]
[405376845,1771093995632,-49453.89,0.00044109,120]
[405376846,1771093995642,-514.79,0.00044109,120]
[405376847,1771093995652,-522.72,0.00044109,120]
[405376848,1771093995661,-3592.54,0.00044109,120]
[405376849,1771093995671,-6816.69,0.00044109,120]
[405376850,1771093995680,-6877.26,0.00044109,120]
[405376851,1771093995689,-604.98855948,0.00044109,30]
[405376852,1771093995699,-3548.79,0.00044109,120]
[405376853,1771093995708,-643.83,0.00044109,120]
[405376854,1771093995717,-5429.53,0.00044109,120]
[405376855,1771093995727,-4648.43,0.00044109,120]
[405376856,1771093995736,-685.71,0.00044109,120]
[405376857,1771093995745,-500.0,0.00044109,120]
[405376858,1771093995755,-1668.59,0.00044109,120]
[405376859,1771093995764,-622.0,0.00044109,120]
[405376860,1771093995773,-4113.81,0.00044109,120]
[405376861,1771093995783,-735.58,0.00044109,120]
[405376862,1771093995792,-1564.16,0.00044109,120]
[405376863,1771093995801,-678.21,0.00044109,120]
[405376864,1771093995810,-2515.75,0.00044109,120]
[405376865,1771093995819,-4400.86,0.00044109,120]
[405376866,1771093995828,-579.75,0.00044109,120]
[405376867,1771093995838,-798.86,0.00044109,120]
[405376868,1771093995847,-1141.19,0.00044109,120]
[405376869,1771093995856,-9716.73,0.00044109,120]
[405376870,1771093995866,-995.04,0.00044109,120]
[405376871,1771093995875,-50000.0,0.00044114,52]
[405376872,1771093995884,-50000.0,0.00044114,55]
[405376873,1771093995894,-50000.0,0.00044114,56]
[405376874,1771093995903,-50000.0,0.00044114,58]
[405376875,1771093995912,-50000.0,0.00044114,59]
[405376876,1771093995921,-50000.0,0.00044114,63]
[405376877,1771093995930,-50000.0,0.00044114,64]
[405376878,1771093995940,-243212.94112484,0.00044115,10]
[405376879,1771093995949,-628232.58694589,0.00044115,10]
[405376880,1771093995958,-700.0,0.00044115,10]
[405376881,1771093995967,-1626.20112996,0.00044115,10]
[405376882,1771093995977,-124287.51916785,0.00044115,2]
[405376883,1771093995986,-2033.78067392,0.00044115,5]
[405376884,1771093995996,-732.04311564,0.00044115,10]
[405376885,1771093996005,-984.91186961,0.00044115,2]
[405376886,1771093996014,-548.83116688,0.00044115,7]
[405376887,1771093996024,-220256.18117146,0.00044115,2]
[405376888,1771093996033,-2346.62651001,0.00044115,10]
[405376889,1771093996043,-1000.0,0.00044115,10]
[405376890,1771093996052,-13065.75607163,0.00044115,2]
[405376891,1771093996062,-500.0,0.00044115,10]
[405376892,1771093996071,-133253.21865554,0.00044115,2]
[405376893,1771093996080,-1070.76274354,0.00044115,7]
[405376894,1771093996090,-10896.89275449,0.00044115,2]
[405376895,1771093996099,-1774588.63150996,0.00044115,10]
[405376896,1771093996108,-6948.48379845,0.00044115,4]
[405376897,1771093996117,-5317.98073342,0.00044115,4]
[405376898,1771093996126,-1521.60401516,0.00044115,2]
[405376899,1771093996135,-1113543.17378848,0.00044115,10]
[405376900,1771093996144,-762954.45053935,0.00044115,10]
[405376901,1771093996154,-251.0,0.00044115,10]
[405376902,1771093996163,-572875.08250209,0.00044115,10]
[405376903,1771093996172,-1575883.77532003,0.00044115,20]
[405376904,1771093996181,-1309301.12612881,0.00044115,10]
[405376905,1771093996191,-150.0,0.00044115,2]
[405376906,1771093996202,-8612189.69326231,0.00044115,10]
[405376907,1771093996211,-2425103.70799285,0.00044115,10]
[405376908,1771093996220,-5619930.29979262,0.00044115,10]
[405376909,1771093996230,-3537724.62658437,0.00044115,10]
[405376910,1771093996239,-2497366.72973234,0.00044115,10]
[405376911,1771093996249,-3108709.31519656,0.00044115,10]
[405376912,1771093996258,-1187185.19168815,0.00044115,10]
[405376913,1771093996267,-2981148.69415783,0.00044115,10]
[405376914,1771093996276,-71007.21,0.00044115,4]
[405376915,1771093996285,-14184.06956506,0.00044115,2]
[405376916,1771093996294,-308.64519009,0.00044115,2]
[405376917,1771093996303,-398.26260095,0.00044115,2]
[405376918,1771093996313,-205678.94591881,0.00044115,2]
[405376919,1771093996322,-1210.0,0.00044115,2]
[405376920,1771093996331,-716.0252605,0.00044115,2]
[405376921,1771093996341,-354.77214377,0.00044115,2]
[405376922,1771093996351,-1548.5395476,0.00044115,2]
[405376923,1771093996360,-1048.73040739,0.00044115,2]
[405376924,1771093996369,-5282.53475048,0.00044115,2]
[405376925,1771093996379,-2500.49275316,0.00044115,2]
[405376926,1771093996389,-2753.38235525,0.00044115,2]
[405376927,1771093996399,-154.10061792,0.00044115,2]
[405376928,1771093996533,-1708.38307324,0.00044115,2]
[405376929,1771093996546,-253.73943058,0.00044115,2]
[405376930,1771093996555,-500.0,0.00044115,2]
[405376931,1771093996564,-1284.62602653,0.00044115,2]
[405376932,1771093996575,-1060.80423036,0.00044115,2]
[405376933,1771093996584,-555.33546593,0.00044115,2]
[405376934,1771093996594,-9402.19576479,0.00044115,2]
[405376935,1771093996604,-1335.7842408,0.00044115,2]
[405376936,1771093996614,-3482.50223767,0.00044115,2]
[405376937,1771093996626,-2236.52693614,0.00044115,2]
[405376938,1771093996637,-761.29326755,0.00044115,2]
[405376939,1771093996648,-187.43063898,0.00044115,2]
[405376940,1771093996659,-643.0,0.00044115,2]
[405376941,1771093996670,-988.36440527,0.00044115,2]
[405376942,1771093996680,-583.54120671,0.00044115,2]
[405376943,1771093996691,-676605.37923259,0.00044115,2]
[405376944,1771093996702,-3299.842486,0.00044115,2]
[405376945,1771093996714,-178.57759656,0.00044115,2]
[405376946,1771093996725,-7402.94613333,0.00044115,2]
[405376947,1771093996735,-550.0,0.00044115,2]
[405376948,1771093996744,-233.00176641,0.00044115,2]
[405376949,1771093996755,-176.82928406,0.00044115,2]
[405376950,1771093996765,-28553.03262734,0.00044115,2]
[405376951,1771093996775,-6000.0,0.00044115,2]
[405376952,1771093996786,-381.9884309,0.00044115,2]
[405376953,1771093996796,-1301.33422772,0.00044115,2]
[405376954,1771093996806,-1051.6044015,0.00044115,2]
[405376955,1771093996816,-50054.01069251,0.00044115,2]
[405376956,1771093996826,-673.62481635,0.00044115,2]
[405376957,1771093996836,-7927.43521846,0.00044115,2]
[405376958,1771093996846,-637.79125339,0.00044115,2]
[405376959,1771093996857,-218.64891173,0.00044115,2]
[405376960,1771093996867,-1086.03789713,0.00044115,2]
[405376961,1771093996881,-2500.0,0.00044115,2]
[405376962,1771093996890,-348.29796417,0.00044115,2]
[405376963,1771093996900,-1100.0,0.00044115,2]
[405376964,1771093996910,-928.69624912,0.00044115,2]
[405376965,1771093996920,-490.32249056,0.00044115,2]
[405376966,1771093996931,-1616.13642121,0.00044115,2]
[405376967,1771093996942,-558.2673394,0.00044115,2]
[405376968,1771093996952,-1030.15213194,0.00044115,2]
[405376969,1771093996962,-371.44085584,0.00044115,2]
[405376970,1771093996972,-2243.47432286,0.00044115,2]
[405376971,1771093996983,-15063.34919526,0.00044115,2]
[405376972,1771093996994,-1870.24094846,0.00044115,2]
[405376973,1771093997004,-1138.63565983,0.00044115,2]
[405376974,1771093997013,-409.93452683,0.00044115,2]
[405376975,1771093997023,-2483.2543228,0.00044115,2]
[405376976,1771093997032,-206.58879313,0.00044115,2]
[405376977,1771093997042,-879.25851529,0.00044115,2]
[405376978,1771093997051,-288.01236132,0.00044115,2]
[405376979,1771093997062,-5791.90179182,0.00044115,2]
[405376980,1771093997071,-2212.82881221,0.00044115,2]
[405376981,1771093997080,-150.0,0.00044115,2]
[405376982,1771093997090,-469.08879874,0.00044115,2]
[405376983,1771093997099,-160.0,0.00044115,2]
[405376984,1771093997109,-203.1708557,0.00044115,2]
[405376985,1771093997118,-756.41583728,0.00044115,2]
[405376986,1771093997128,-1387731.64025755,0.00044115,10]
[405376987,1771093997137,-977404.41016866,0.00044115,10]
[405376988,1771093997665,-10622.0000001,0.00044115,10]
[405376989,1771093997954,-500.0,0.0003863,9]
[405376990,1771093997965,-8483.88,0.00038904,9]
[405376991,1771093997975,-500.0,0.00039726,9]
[405376992,1771093997984,-540642.92509884,0.00044115,10]
[405376993,1771093997999,-78602.54842374,0.00044115,10]
[405376994,1771093998306,-1291.006144,0.00036986,31]
[405376995,1771093998315,-151.0,0.00036986,31]
[405376996,1771093998325,-500.0,0.0003863,9]
[405376997,1771093998335,-500.0,0.0004,9]
[405376998,1771093998345,-111.51815803,0.0004,9]
[405376999,1771094002046,500.0,8.915e-05,2]
[405377003,1771094065060,-199.988,0.00017541,2]
[405377004,1771094065083,-193.314,0.00017541,2]
[405377005,1771094065105,-150.0,0.00017898,2]
[405377006,1771094065130,-300.0,0.00017898,2]
[405377007,1771094065153,-1956.698,0.00017899,2]
[405377032,1771095031412,-250.0,0.00015,2]
[405377033,1771095031425,-250.0,0.000165,2]
[405377034,1771095031435,-193.65011307,0.000165,2]
[405377035,1771095031446,-36.39988693,0.00017,2]
[405377036,1771095031463,-263.60011307,0.00017,2]
[405377037,1771095031475,-163.86621088,0.000178,2]
[405377038,1771095031487,-300.0,0.00017899,2]
[405377039,1771095031500,-300.0,0.00017899,2]
[405377040,1771095031513,-5660.7001,0.000179,2]
[405377041,1771095031525,-1000.0,0.000179,2]
[405377042,1771095031543,-246.92,0.000179,2]
[405377043,1771095031561,-350.0,0.00019,2]
[405377044,1771095031572,-511.0,0.00019,2]
[405377045,1771095031585,-151.9578629,0.0002,20]
[405377046,1771095031595,-150.0,0.00024658,2]
[405377047,1771095031606,-393.0,0.00025479,10]
[405377048,1771095031617,-150.0,0.0002589,2]
[405377049,1771095031627,-511.0,0.00026625,9]
[405377050,1771095031637,-150.0,0.00027185,2]
[405377051,1771095031648,-1800.68874078,0.00028216,2]
[405377052,1771095031660,-5617.7399787,0.00028216,2]
[405377053,1771095031671,-698.020357,0.00028216,2]
[405377054,1771095031683,-251.42729024,0.00028216,2]
[405377055,1771095031694,-14690.03783328,0.00028216,2]
[405377057,1771095031711,-2500.0,0.00028216,2]
[405377069,1771095032074,-150.0,0.00028544,2]
[405377070,1771095032084,-150.0,0.00030664,5]
[405377071,1771095032094,-150.0,0.00030664,5]
[405377072,1771095032104,-193.13,0.000307,30]
[405377073,1771095032114,-166.66,0.0003076,2]
[405377074,1771095032123,-163.86621086,0.00030908,2]
[405377075,1771095032139,-313.74,0.00031104,2]
[405377076,1771095032158,-1217.65,0.00031157,30]
[405377077,1771095032170,-166.66,0.00031177,30]
[405377078,1771095032180,-250.0,0.00031212,5]
[405377079,1771095032190,-300.0,0.00031212,5]
[405377080,1771095032199,-350.0,0.0003176,5]
[405377081,1771095032210,-166.66,0.00031775,2]
[405377082,1771095032219,-250.46329272,0.00032307,5]
[405377083,1771095032229,-1879.0469156,0.00032609,2]
[405377085,1771095037489,-295.0,0.00032609,30]
[405377086,1771095037499,-125.80600006,0.00032609,2]
[405377087,1771095037542,-326.7999999,0.00032609,2]
[405377088,1771095037554,-686.50708444,0.00032609,2]
[405377089,1771095037565,-38.49291556,0.0003279,2]
[405377090,1771095037576,-128.16708444,0.0003279,2]
[405377091,1771095037587,-229.63291556,0.0003291,2]
[405377173,1771095039484,-881.0,0.0003291,30]
[405377174,1771095039495,-770.36708444,0.0003291,2]
[405377175,1771095039505,-500.0,0.00032934,20]
[405377176,1771095039515,-1000.0,0.00033177,2]
[405377177,1771095039525,-5000.0,0.00033763,2]
[405377178,1771095039537,-150.00964432,0.00033781,30]
[405377179,1771095039547,-166.66,0.00033806,2]
[405377180,1771095039557,-150.00964432,0.00034137,30]
[405377181,1771095039567,-511.0,0.0003425,16]
[405377182,1771095039577,-150.00964432,0.00034521,30]
[405377183,1771095039587,-313.74,0.00034529,2]
[405377184,1771095039597,-150.0,0.00034562,2]
[405377185,1771095039606,-1500.0,0.00034795,2]
[405377186,1771095039616,-1217.65,0.0003481,30]
[405377187,1771095039626,-166.66,0.00034821,2]
[405377188,1771095039636,-150.00964432,0.00034877,30]
[405377189,1771095039646,-150.00964432,0.0003526,30]
[405377190,1771095039656,-407.77591445,0.0003526,30]
[405377191,1771095039666,-166.66,0.00035837,2]
[405377192,1771095039676,-775.053,0.00036174,44]
[405377193,1771095039685,-174.7732489,0.00036432,10]
[405377194,1771095039694,-500.0,0.00036673,5]
[405377195,1771095039704,-1000.0,0.00037024,2]
[405377196,1771095039714,-500.0,0.00037626,120]
[405377197,1771095039724,-313.74,0.00037954,2]
[405377198,1771095039733,-302.0,0.00038,2]
[405377199,1771095039747,-309.0,0.00038,2]
[405377200,1771095039756,-173.24958518,0.00038256,120]
[405377201,1771095039765,-500.0,0.00038356,2]
[405377202,1771095039776,-500.0,0.00038356,9]
[405377203,1771095039786,-500.0,0.00038356,9]
[405377204,1771095039796,-500.0,0.00038356,9]